fUSD/lending_fUSD_20240214
["ID","MTS","AMOUNT","RATE_DAILY","PERIOD"]
[314042848,1707945066785,-150.0,0.00036999,2]
[314042849,1707945066794,-150.0,0.00036999,2]
[314042850,1707945066804,-150.0,0.00036999,2]
[314042851,1707945066813,-150.0,0.00036999,2]
[314042852,1707945066823,-150.0,0.00036999,2]
[314042853,1707945066832,-150.0,0.00036999,2]
[314042854,1707945066841,-150.0,0.00036999,2]
[314042855,1707945066851,-150.0,0.00036999,2]
[314042856,1707945066861,-150.0,0.00036999,2]
[314042857,1707945066870,-150.0,0.00036999,2]
[314042858,1707945066879,-150.0,0.00036999,2]
[314042859,1707945066888,-150.0,0.00036999,2]
[314042860,1707945066898,-150.0,0.00036999,2]
[314042861,1707945066907,-150.0,0.00036999,2]
[314042862,1707945066917,-150.0,0.00036999,2]
[314042863,1707945066926,-150.0,0.00036999,2]
[314042864,1707945066935,-100000.0,0.00037,7]
[314042865,1707945066945,-927070.52887446,0.00037,15]
[314042866,1707945066959,-6509017.67332534,0.00037,15]
[314042867,1707945066969,-500.0,0.00037,2]
[314042868,1707945066979,-1000.0,0.00037,6]
[314042869,1707945066988,-1000.0,0.00037,6]
[314042870,1707945066999,-500.0,0.00037,2]
[314042871,1707945067009,-500.0,0.00037,2]
[314042872,1707945067018,-500.0,0.00037,2]
[314042873,1707945067027,-373.4,0.00037,2]
[314042874,1707945067038,-500.0,0.00037,2]
[314042875,1707945067047,-500.0,0.00037,2]
[314042876,1707945067057,-500.0,0.00037,2]
[314042877,1707945067066,-500.0,0.00037,2]
[314042878,1707945067076,-500.0,0.00037,2]
[314042879,1707945067085,-500.0,0.00037,2]
[314042880,1707945067095,-500.0,0.00037,2]
[314042881,1707945067105,-500.0,0.00037,2]
[314042882,1707945067115,-500.0,0.00037,2]
[314042883,1707945067125,-500.0,0.00037,2]
[314042884,1707945067134,-500.0,0.00037,2]
[314042885,1707945067143,-500.0,0.00037,2]
[314042886,1707945067153,-500.0,0.00037,2]
[314042887,1707945067162,-500.0,0.00037,2]
[314042888,1707945067171,-500.0,0.00037,2]
[314042889,1707945067180,-500.0,0.00037,2]
[314042890,1707945067190,-309.18,0.00037,2]
[314042891,1707945067199,-2205.85243915,0.00037,2]
[314042892,1707945067209,-1620.28700576,0.00037,2]
[314042893,1707945067219,-12587.0,0.00037,2]
[314042894,1707945067229,-87987.6570546,0.00037,2]
[314042895,1707945067238,-151.0,0.00037,2]
[314042896,1707945067248,-150.0,0.00037011,2]
[314042897,1707945067258,-150.0,0.00037025,2]
[314042898,1707945067267,-1500.0,0.00037041,2]
[314042899,1707945067277,-151.021519,0.00037048,19]
[314042900,1707945067286,-150.0,0.00037058,2]
[314042901,1707945067295,-150.0,0.00037067,2]
[314042902,1707945067305,-8096.0,0.00037075,2]
[314042903,1707945067315,-151.0,0.00037082,2]
[314042904,1707945067324,-150.0,0.0003709,2]
[314042905,1707945067333,-150.0,0.00037095,2]
[314042906,1707945067343,-1000.0,0.000371,7]
[314042907,1707945067353,-150.0,0.00037125,2]
[314042908,1707945067363,-150.0,0.00037128,2]
[314042909,1707945067372,-150.0,0.00037131,2]
[314042910,1707945067381,-150.0,0.00037134,2]
[314042911,1707945067390,-150.0,0.00037138,2]
[314042912,1707945067400,-222.021519,0.00037148,18]
[314042913,1707945067409,-150.0,0.00037149,2]
[314042914,1707945067419,-169.81814629,0.0003716,2]
[314042915,1707945067429,-150.0,0.00037168,2]
[314042916,1707945067439,-150.0,0.00037176,2]
[314042917,1707945067448,-200.0,0.00037179,2]
[314042918,1707945067458,-200.0,0.00037179,3]
[314042919,1707945067467,-150.0,0.00037188,2]
[314042920,1707945067477,-153.78,0.000372,3]
[314042921,1707945067486,-153.78,0.000372,3]
[314042922,1707945067496,-153.78,0.000372,3]
[314042923,1707945067505,-153.78,0.000372,3]
[314042924,1707945067515,-6607.0,0.00037207,2]
[314042925,1707945067526,-150.0,0.00037208,2]
[314042926,1707945067535,-150.0,0.00037209,2]
[314042927,1707945067544,-150.0,0.00037219,2]
[314042928,1707945067554,-150.0,0.0003723,2]
[314042929,1707945067564,-153.54697604,0.00037231,2]
[314042930,1707945067574,-151.021519,0.00037248,19]
[314042931,1707945067585,-291.91034615,0.0003726,7]
[314042932,1707945067594,-556.75,0.0003726,7]
[314042933,1707945067604,-586.75,0.0003726,7]
[314042934,1707945067613,-799.09,0.0003726,7]
[314042935,1707945067621,-500.0,0.0003726,7]
[314042936,1707945067632,-500.0,0.0003726,7]
[314042937,1707945067641,-899.57,0.0003726,7]
[314042938,1707945067650,-484.78111964,0.0003726,7]
[314042939,1707945067660,-2544.37,0.0003726,7]
[314042940,1707945067670,-647.67,0.0003726,7]
[314042941,1707945067679,-500.0,0.0003726,7]
[314042942,1707945067689,-500.0,0.0003726,7]
[314042943,1707945067698,-558.18,0.0003726,7]
[314042944,1707945067707,-500.0,0.0003726,7]
[314042945,1707945067717,-694.58,0.0003726,7]
[314042946,1707945067727,-500.0,0.0003726,7]
[314042947,1707945067737,-1144.53,0.0003726,7]
[314042948,1707945067747,-500.0,0.0003726,7]
[314042949,1707945067756,-500.0,0.0003726,7]
[314042950,1707945067765,-500.0,0.0003726,7]
[314042951,1707945067775,-500.0,0.0003726,7]
[314042952,1707945067784,-500.0,0.0003726,7]
[314042953,1707945067794,-500.0,0.0003726,7]
[314042954,1707945067803,-3424.69,0.0003726,7]
[314042955,1707945067813,-818.43,0.0003726,7]
[314042956,1707945067822,-5392.04,0.0003726,7]
[314042957,1707945067833,-503.92,0.0003726,7]
[314042958,1707945067842,-906.19,0.0003726,7]
[314042959,1707945067851,-549.23,0.0003726,7]
[314042960,1707945067861,-500.0,0.0003726,7]
[314042961,1707945067871,-500.0,0.0003726,7]
[314042962,1707945067882,-822.06,0.0003726,7]
[314042963,1707945067891,-500.0,0.0003726,7]
[314042964,1707945067901,-3341.45,0.0003726,7]
[314042965,1707945067911,-500.0,0.0003726,7]
[314042966,1707945067920,-677.12,0.0003726,7]
[314042967,1707945067930,-500.0,0.0003726,7]
[314042968,1707945067939,-1761.82,0.0003726,7]
[314042969,1707945067950,-609.74,0.0003726,7]
[314042970,1707945067961,-802.92,0.0003726,7]
[314042971,1707945067971,-500.0,0.0003726,7]
[314042972,1707945067982,-500.0,0.0003726,7]
[314042973,1707945067992,-13582.07,0.0003726,7]
[314042974,1707945068002,-500.0,0.0003726,7]
[314042975,1707945068012,-500.0,0.0003726,7]
[314042976,1707945068022,-953.89,0.0003726,7]
[314042977,1707945068031,-500.0,0.0003726,7]
[314042978,1707945068041,-6234.22,0.0003726,7]
[314042979,1707945068050,-500.0,0.0003726,7]
[314042980,1707945068059,-586.78,0.0003726,7]
[314042981,1707945068069,-500.0,0.0003726,7]
[314042982,1707945068078,-500.0,0.0003726,7]
[314042983,1707945068087,-1606.08,0.0003726,7]
[314042984,1707945068096,-500.0,0.0003726,7]
[314042985,1707945068105,-595.12,0.0003726,7]
[314042986,1707945068115,-500.0,0.0003726,7]
[314042987,1707945068125,-1047.58,0.0003726,7]
[314042988,1707945068135,-681.83,0.0003726,7]
[314042989,1707945068144,-1810.87,0.0003726,7]
[314042990,1707945068153,-500.0,0.0003726,7]
[314042991,1707945068163,-515.63,0.0003726,7]
[314042992,1707945068172,-805.31,0.0003726,7]
[314042993,1707945068182,-500.0,0.0003726,7]
[314042994,1707945068191,-603.11,0.0003726,7]
[314042995,1707945068201,-500.0,0.0003726,7]
[314042996,1707945068210,-500.0,0.0003726,7]
[314042997,1707945068220,-513.07,0.0003726,7]
[314042998,1707945068229,-500.0,0.0003726,7]
[314042999,1707945068239,-500.0,0.0003726,7]
[314043000,1707945068249,-500.0,0.0003726,7]
[314043001,1707945068260,-2047.91,0.0003726,7]
[314043002,1707945068270,-841.02,0.0003726,7]
[314043003,1707945068279,-780.8,0.0003726,7]
[314043004,1707945068288,-662.19,0.0003726,7]
[314043005,1707945068298,-1486.64,0.0003726,7]
[314043006,1707945068308,-2858.66,0.0003726,7]
[314043007,1707945068317,-500.0,0.0003726,7]
[314043008,1707945068327,-590.33,0.0003726,7]
[314043009,1707945068336,-786.93,0.0003726,7]
[314043010,1707945068346,-500.0,0.0003726,7]
[314043011,1707945068355,-577.68,0.0003726,7]
[314043012,1707945068365,-3628.12,0.0003726,7]
[314043013,1707945068374,-4757.12,0.0003726,7]
[314043014,1707945068383,-598.4,0.0003726,7]
[314043015,1707945068393,-1991.03,0.0003726,7]
[314043016,1707945068402,-612.33,0.0003726,2]
[314043017,1707945068411,-500.0,0.0003726,7]
[314043018,1707945068421,-500.0,0.0003726,7]
[314043019,1707945068430,-617.82,0.0003726,7]
[314043020,1707945068440,-500.0,0.0003726,7]
[314043021,1707945068449,-502.43,0.0003726,7]
[314043022,1707945068458,-2139.36,0.0003726,7]
[314043023,1707945068468,-807.41,0.0003726,7]
[314043024,1707945068477,-685.44,0.0003726,7]
[314043025,1707945068487,-500.0,0.0003726,7]
[314043026,1707945068496,-500.0,0.0003726,7]
[314043027,1707945068505,-730.2,0.0003726,7]
[314043028,1707945068514,-2211.07,0.0003726,7]
[314043029,1707945068523,-500.0,0.0003726,7]
[314043030,1707945068532,-711.33,0.0003726,7]
[314043031,1707945068542,-743.99,0.0003726,7]
[314043032,1707945068551,-2294.91,0.0003726,7]
[314043033,1707945068560,-2043.37,0.0003726,7]
[314043034,1707945068570,-500.0,0.0003726,7]
[314043035,1707945068579,-594.55,0.0003726,7]
[314043036,1707945068588,-469.35025414,0.0003726,7]
[314043037,1707945068597,-6637.56,0.0003726,7]
[314043038,1707945068606,-500.0,0.0003726,7]
[314043039,1707945068616,-500.0,0.0003726,7]
[314043040,1707945068625,-500.0,0.0003726,7]
[314043041,1707945068782,-500.0,0.0003726,7]
[314043042,1707945068793,-1343.45,0.0003726,7]
[314043043,1707945068803,-1215.55,0.0003726,7]
[314043044,1707945068813,-1240.3,0.0003726,7]
[314043045,1707945068822,-595.97,0.0003726,7]
[314043046,1707945068832,-1831.02,0.0003726,7]
[314043047,1707945068842,-500.0,0.0003726,7]
[314043048,1707945068852,-1575.34,0.0003726,7]
[314043049,1707945068862,-500.0,0.0003726,7]
[314043050,1707945068873,-1949.84,0.0003726,7]
[314043051,1707945068883,-500.0,0.0003726,7]
[314043052,1707945068893,-500.0,0.0003726,7]
[314043053,1707945068902,-500.0,0.0003726,7]
[314043054,1707945068910,-1376.91,0.0003726,7]
[314043055,1707945068919,-1838.93,0.0003726,7]
[314043056,1707945068928,-1020.07,0.0003726,7]
[314043057,1707945068937,-500.0,0.0003726,7]
[314043058,1707945068949,-500.0,0.0003726,7]
[314043059,1707945068959,-500.0,0.0003726,7]
[314043060,1707945068969,-1264.88,0.0003726,7]
[314043061,1707945068978,-500.0,0.0003726,7]
[314043062,1707945068990,-4521.24,0.0003726,7]
[314043063,1707945068999,-791.66,0.0003726,7]
[314043064,1707945069008,-4808.1,0.0003726,7]
[314043065,1707945069018,-500.0,0.0003726,7]
[314043066,1707945069027,-500.0,0.0003726,7]
[314043067,1707945069037,-660.03,0.0003726,7]
[314043068,1707945069046,-1751.89,0.0003726,7]
[314043069,1707945069055,-500.0,0.0003726,7]
[314043070,1707945069064,-665.94,0.0003726,7]
[314043071,1707945069073,-1411.1,0.0003726,7]
[314043072,1707945069083,-720.52,0.0003726,7]
[314043073,1707945069092,-1028.68,0.0003726,7]
[314043074,1707945069102,-1101.95,0.0003726,7]
[314043075,1707945069112,-633.08,0.0003726,7]
[314043076,1707945069122,-679.4,0.0003726,7]
[314043077,1707945069132,-500.0,0.0003726,7]
[314043078,1707945069141,-1588.43,0.0003726,7]
[314043079,1707945069151,-859.31,0.0003726,7]
[314043080,1707945069160,-570.05,0.0003726,7]
[314043081,1707945069169,-2455.03,0.0003726,7]
[314043082,1707945069179,-500.0,0.0003726,7]
[314043083,1707945069188,-500.0,0.0003726,7]
[314043084,1707945069198,-6828.37,0.0003726,7]
[314043085,1707945069208,-500.0,0.0003726,7]
[314043086,1707945069217,-500.0,0.0003726,7]
[314043087,1707945069227,-7718.39,0.0003726,7]
[314043088,1707945069236,-500.0,0.0003726,7]
[314043089,1707945069246,-500.0,0.0003726,7]
[314043090,1707945069256,-500.0,0.0003726,7]
[314043091,1707945069267,-500.0,0.0003726,7]
[314043092,1707945069277,-730.4,0.0003726,7]
[314043093,1707945069286,-1547.02,0.0003726,7]
[314043094,1707945069295,-1211.6,0.0003726,7]
[314043095,1707945069305,-500.0,0.0003726,7]
[314043096,1707945069314,-592.22,0.0003726,7]
[314043097,1707945069323,-1187.29,0.0003726,7]
[314043098,1707945069333,-6862.69,0.0003726,7]
[314043099,1707945069343,-500.0,0.0003726,7]
[314043100,1707945069352,-1752.35,0.0003726,7]
[314043101,1707945069362,-500.0,0.0003726,7]
[314043102,1707945069371,-565.71,0.0003726,7]
[314043103,1707945069381,-551.53,0.0003726,7]
[314043104,1707945069390,-500.0,0.0003726,7]
[314043105,1707945069400,-828.25,0.0003726,7]
[314043106,1707945069410,-500.0,0.0003726,7]
[314043107,1707945069422,-500.0,0.0003726,7]
[314043108,1707945069431,-865.42,0.0003726,7]
[314043109,1707945069440,-1003.79,0.0003726,7]
[314043110,1707945069449,-5366.99,0.0003726,7]
[314043111,1707945069458,-1623.54,0.0003726,7]
[314043112,1707945069468,-1200.22,0.0003726,7]
[314043113,1707945069477,-558.49,0.0003726,7]
[314043114,1707945069487,-500.0,0.0003726,7]
[314043115,1707945069496,-1014.56,0.0003726,7]
[314043116,1707945069506,-460.2945133,0.0003726,7]
[314043117,1707945069515,-500.0,0.0003726,7]
[314043118,1707945069524,-995.34,0.0003726,7]
[314043119,1707945069533,-746.35,0.0003726,7]
[314043120,1707945069542,-501.11,0.0003726,7]
[314043121,1707945069551,-1044.44,0.0003726,7]
[314043122,1707945069565,-1716.87,0.0003726,7]
[314043123,1707945069604,-587.47,0.0003726,7]
[314043124,1707945069614,-1848.23,0.0003726,7]
[314043125,1707945069623,-1168.36,0.0003726,7]
[314043126,1707945069632,-2233.44,0.0003726,7]
[314043127,1707945069642,-500.0,0.0003726,7]
[314043128,1707945069651,-500.0,0.0003726,7]
[314043129,1707945069660,-500.0,0.0003726,7]
[314043130,1707945069671,-983.47,0.0003726,7]
[314043131,1707945069679,-580.91,0.0003726,7]
[314043132,1707945069688,-826.29,0.0003726,7]
[314043133,1707945069698,-250.0,0.0003726,7]
[314043134,1707945069708,-972.52,0.0003726,7]
[314043135,1707945069717,-898.19,0.0003726,7]
[314043136,1707945069727,-500.0,0.0003726,7]
[314043137,1707945069736,-500.0,0.0003726,7]
[314043138,1707945069746,-2032.9,0.0003726,7]
[314043139,1707945069755,-500.0,0.0003726,7]
[314043140,1707945069764,-500.0,0.0003726,7]
[314043141,1707945069773,-7693.98,0.0003726,7]
[314043142,1707945069782,-500.0,0.0003726,7]
[314043143,1707945069791,-500.0,0.0003726,7]
[314043144,1707945069800,-500.0,0.0003726,7]
[314043145,1707945069810,-647.49,0.0003726,7]
[314043146,1707945069819,-551.52,0.0003726,7]
[314043147,1707945069829,-778.33,0.0003726,7]
[314043148,1707945069841,-500.0,0.0003726,7]
[314043149,1707945069852,-500.0,0.0003726,7]
[314043150,1707945069862,-3552.29,0.0003726,7]
[314043151,1707945069871,-500.0,0.0003726,7]
[314043152,1707945069881,-500.0,0.0003726,7]
[314043153,1707945069890,-3310.79,0.0003726,7]
[314043154,1707945069899,-630.27,0.0003726,7]
[314043155,1707945069908,-569.11,0.0003726,7]
[314043156,1707945069917,-500.0,0.0003726,7]
[314043157,1707945069926,-1313.58,0.0003726,7]
[314043158,1707945069936,-500.0,0.0003726,7]
[314043159,1707945069946,-500.0,0.0003726,7]
[314043160,1707945069959,-500.0,0.0003726,7]
[314043161,1707945069968,-150.0,0.00037271,2]
[314043162,1707945069977,-150.0,0.00037286,2]
[314043163,1707945069986,-150.0,0.00037288,2]
[314043164,1707945069996,-150.0,0.00037292,2]
[314043165,1707945070005,-150.0,0.00037302,2]
[314043166,1707945070015,-150.0,0.00037302,2]
[314043167,1707945070026,-150.0,0.00037343,2]
[314043168,1707945070036,-205.99998,0.00037344,2]
[314043169,1707945070046,-208.00002,0.00037344,2]
[314043170,1707945070055,-222.021519,0.00037348,19]
[314043171,1707945070065,-155.0,0.00037357,2]
[314043172,1707945070074,-150.0,0.00037361,2]
[314043173,1707945070084,-150.0,0.0003738,2]
[314043174,1707945070093,-150.0,0.00037387,2]
[314043175,1707945070102,-150.0,0.00037389,2]
[314043176,1707945070112,-150.0,0.00037393,2]
[314043177,1707945070122,-150.0,0.00037398,2]
[314043178,1707945070131,-150.0,0.00037403,2]
[314043179,1707945070140,-1500.0,0.00037418,2]
[314043180,1707945070150,-150.0,0.00037421,2]
[314043181,1707945070159,-150.0,0.00037431,2]
[314043182,1707945070168,-150.0,0.00037437,2]
[314043183,1707945070178,-1826.19413,0.00037444,2]
[314043184,1707945070187,-222.021519,0.00037448,19]
[314043185,1707945070196,-1245.23221993,0.0003745,2]
[314043186,1707945070205,-150.0,0.00037453,2]
[314043187,1707945070215,-150.0,0.00037453,2]
[314043188,1707945070224,-150.0,0.0003746,2]
[314043189,1707945070233,-150.0,0.00037471,2]
[314043190,1707945070242,-150.0,0.00037482,2]
[314043191,1707945070252,-524.2615962,0.00037489,9]
[314043192,1707945070262,-524.26159614,0.00037489,9]
[314043193,1707945070272,-524.26159614,0.00037489,9]
[314043194,1707945070282,-524.26159614,0.00037489,9]
[314043195,1707945070291,-800.0,0.00037491,5]
[314043196,1707945070300,-179.42979229,0.00037506,7]
[314043197,1707945070309,-150.0,0.00037507,2]
[314043198,1707945070319,-556.75,0.00037534,7]
[314043199,1707945070328,-586.75,0.00037534,7]
[314043200,1707945070337,-799.09,0.00037534,7]
[314043201,1707945070347,-500.0,0.00037534,7]
[314043202,1707945070356,-500.0,0.00037534,7]
[314043203,1707945070365,-899.57,0.00037534,7]
[314043204,1707945070375,-2544.37,0.00037534,7]
[314043205,1707945070385,-647.67,0.00037534,7]
[314043206,1707945070398,-500.0,0.00037534,7]
[314043207,1707945070407,-500.0,0.00037534,7]
[314043208,1707945070416,-558.18,0.00037534,7]
[314043209,1707945070425,-500.0,0.00037534,7]
[314043210,1707945070434,-694.58,0.00037534,7]
[314043211,1707945070443,-500.0,0.00037534,7]
[314043212,1707945070452,-1144.53,0.00037534,7]
[314043213,1707945070461,-500.0,0.00037534,7]
[314043214,1707945070470,-500.0,0.00037534,7]
[314043215,1707945070479,-176.89120007,0.00037534,7]
[314043216,1707945070488,-500.0,0.00037534,7]
[314043217,1707945070497,-500.0,0.00037534,7]
[314043218,1707945070507,-500.0,0.00037534,7]
[314043219,1707945070517,-3424.69,0.00037534,7]
[314043220,1707945070526,-818.43,0.00037534,7]
[314043221,1707945070536,-5392.04,0.00037534,7]
[314043222,1707945070547,-503.92,0.00037534,7]
[314043223,1707945070556,-906.19,0.00037534,7]
[314043224,1707945070566,-549.23,0.00037534,7]
[314043225,1707945070575,-500.0,0.00037534,7]
[314043226,1707945070584,-500.0,0.00037534,7]
[314043227,1707945070594,-822.06,0.00037534,7]
[314043228,1707945070604,-500.0,0.00037534,7]
[314043229,1707945070615,-3341.45,0.00037534,7]
[314043230,1707945070624,-500.0,0.00037534,7]
[314043231,1707945070634,-677.12,0.00037534,7]
[314043232,1707945070643,-500.0,0.00037534,7]
[314043233,1707945070652,-1761.82,0.00037534,7]
[314043234,1707945070661,-609.74,0.00037534,7]
[314043235,1707945070671,-802.92,0.00037534,7]
[314043236,1707945070680,-500.0,0.00037534,7]
[314043237,1707945070690,-500.0,0.00037534,7]
[314043238,1707945070699,-13582.07,0.00037534,7]
[314043239,1707945070709,-500.0,0.00037534,7]
[314043240,1707945070718,-500.0,0.00037534,7]
[314043241,1707945070727,-953.89,0.00037534,7]
[314043242,1707945070737,-500.0,0.00037534,7]
[314043243,1707945070746,-500.0,0.00037534,7]
[314043244,1707945070754,-6234.22,0.00037534,7]
[314043245,1707945070764,-586.78,0.00037534,7]
[314043246,1707945070773,-500.0,0.00037534,7]
[314043247,1707945070783,-378.91588597,0.00037534,7]
[314043248,1707945070793,-1606.08,0.00037534,7]
[314043249,1707945070802,-500.0,0.00037534,7]
[314043250,1707945070811,-595.12,0.00037534,7]
[314043251,1707945070822,-500.0,0.00037534,7]
[314043252,1707945070831,-1047.58,0.00037534,7]
[314043253,1707945070841,-681.83,0.00037534,7]
[314043254,1707945070850,-1810.87,0.00037534,7]
[314043255,1707945070860,-500.0,0.00037534,7]
[314043256,1707945070869,-515.63,0.00037534,7]
[314043257,1707945070878,-805.31,0.00037534,7]
[314043258,1707945070888,-603.11,0.00037534,7]
[314043259,1707945070897,-500.0,0.00037534,7]
[314043260,1707945070907,-500.0,0.00037534,7]
[314043261,1707945070917,-500.0,0.00037534,7]
[314043262,1707945070926,-513.07,0.00037534,7]
[314043263,1707945070936,-500.0,0.00037534,7]
[314043264,1707945070949,-500.0,0.00037534,7]
[314043265,1707945070958,-500.0,0.00037534,7]
[314043266,1707945070968,-2047.91,0.00037534,7]
[314043267,1707945070977,-841.02,0.00037534,7]
[314043268,1707945070987,-780.8,0.00037534,7]
[314043269,1707945070996,-662.19,0.00037534,7]
[314043270,1707945071005,-1486.64,0.00037534,7]
[314043271,1707945071015,-2858.66,0.00037534,7]
[314043272,1707945071025,-500.0,0.00037534,7]
[314043273,1707945071035,-590.33,0.00037534,7]
[314043274,1707945071044,-786.93,0.00037534,7]
[314043275,1707945071053,-500.0,0.00037534,7]
[314043276,1707945071063,-577.68,0.00037534,7]
[314043277,1707945071072,-3628.12,0.00037534,7]
[314043278,1707945071081,-4757.12,0.00037534,7]
[314043279,1707945071091,-598.4,0.00037534,7]
[314043280,1707945071101,-1991.03,0.00037534,7]
[314043281,1707945071111,-612.33,0.00037534,2]
[314043282,1707945071121,-500.0,0.00037534,7]
[314043283,1707945071130,-627.31,0.00037534,7]
[314043284,1707945071139,-617.82,0.00037534,7]
[314043285,1707945071149,-500.0,0.00037534,7]
[314043286,1707945071159,-502.43,0.00037534,7]
[314043287,1707945071169,-2139.36,0.00037534,7]
[314043288,1707945071178,-807.41,0.00037534,7]
[314043289,1707945071188,-685.44,0.00037534,7]
[314043290,1707945071197,-500.0,0.00037534,7]
[314043291,1707945071207,-500.0,0.00037534,7]
[314043292,1707945071216,-730.2,0.00037534,7]
[314043293,1707945071226,-2211.07,0.00037534,7]
[314043294,1707945071235,-500.0,0.00037534,7]
[314043295,1707945071244,-711.33,0.00037534,7]
[314043296,1707945071255,-743.99,0.00037534,7]
[314043297,1707945071265,-2294.91,0.00037534,7]
[314043298,1707945071274,-2043.37,0.00037534,7]
[314043299,1707945071284,-500.0,0.00037534,7]
[314043300,1707945071294,-594.55,0.00037534,7]
[314043301,1707945071303,-6637.56,0.00037534,7]
[314043302,1707945071313,-500.0,0.00037534,7]
[314043303,1707945071322,-500.0,0.00037534,7]
[314043304,1707945071332,-500.0,0.00037534,7]
[314043305,1707945071341,-500.0,0.00037534,7]
[314043306,1707945071351,-1343.45,0.00037534,7]
[314043307,1707945071362,-1215.55,0.00037534,7]
[314043308,1707945071372,-595.97,0.00037534,7]
[314043309,1707945071381,-500.0,0.00037534,7]
[314043310,1707945071390,-1831.02,0.00037534,7]
[314043311,1707945071399,-1575.34,0.00037534,7]
[314043312,1707945071408,-1240.3,0.00037534,7]
[314043313,1707945071418,-500.0,0.00037534,7]
[314043314,1707945071428,-1949.84,0.00037534,7]
[314043315,1707945071437,-500.0,0.00037534,7]
[314043316,1707945071446,-500.0,0.00037534,7]
[314043317,1707945071455,-500.0,0.00037534,7]
[314043318,1707945071465,-1376.91,0.00037534,7]
[314043319,1707945071474,-1838.93,0.00037534,7]
[314043320,1707945071484,-1020.07,0.00037534,7]
[314043321,1707945071494,-500.0,0.00037534,7]
[314043322,1707945071505,-500.0,0.00037534,7]
[314043323,1707945071515,-500.0,0.00037534,7]
[314043324,1707945071526,-1264.88,0.00037534,7]
[314043325,1707945071535,-576.12462179,0.00037534,7]
[314043326,1707945071546,-4521.24,0.00037534,7]
[314043327,1707945071556,-791.66,0.00037534,7]
[314043328,1707945071567,-4808.1,0.00037534,7]
[314043329,1707945071576,-500.0,0.00037534,7]
[314043330,1707945071585,-500.0,0.00037534,7]
[314043331,1707945071594,-1751.89,0.00037534,7]
[314043332,1707945071603,-660.03,0.00037534,7]
[314043333,1707945071612,-500.0,0.00037534,7]
[314043334,1707945071622,-665.94,0.00037534,7]
[314043335,1707945071631,-1411.1,0.00037534,7]
[314043336,1707945071641,-720.52,0.00037534,7]
[314043337,1707945071791,-1028.68,0.00037534,7]
[314043338,1707945071801,-1101.95,0.00037534,7]
[314043339,1707945071811,-633.08,0.00037534,7]
[314043340,1707945071820,-679.4,0.00037534,7]
[314043341,1707945071830,-1588.43,0.00037534,7]
[314043342,1707945071839,-859.31,0.00037534,7]
[314043343,1707945071849,-570.05,0.00037534,7]
[314043344,1707945071859,-2455.03,0.00037534,7]
[314043345,1707945071870,-500.0,0.00037534,7]
[314043346,1707945071879,-500.0,0.00037534,7]
[314043347,1707945071889,-6828.37,0.00037534,7]